bitfinex-derivatives/quotes_SOLF0:USTF0_20241120
["timestamp","ask_amount","ask_price","bid_price","bid_amount"]
[1732090166825,2.26,237.0,236.94,6.55769734]
[1732090167028,2.26,237.0,236.97,2.1081]
[1732090167427,2.26,237.0,236.94,6.55769734]
[1732090167631,2.26,237.0,236.96,6.55769734]
[1732090168526,2.26,237.0,236.99,2.108]
[1732090169030,2.26,237.0,236.96,6.55769734]
[1732090169031,2.16,237.01,236.96,6.55769734]
[1732090169628,2.16,237.01,236.99,2.1079]
[1732090170026,2.16,237.01,236.83,0.5297]
[1732090170027,2.16,237.01,236.85,2.4563852]
[1732090170227,2.16,237.01,236.97,2.108]
[1732090170622,2.16,237.01,236.85,3.13072779]
[1732090170823,6.55769734,237.0,236.91,6.55769734]
[1732090171223,6.55769734,237.0,236.97,2.1081]
[1732090171824,6.55769734,237.0,236.93,6.55769734]
[1732090172030,6.55769734,237.0,236.97,2.1081]
[1732090172833,2.16,237.01,236.99,2.1079]
[1732090173431,2.16,237.01,236.96,2.1081]
[1732090173731,2.16,237.01,236.95,6.55769734]
[1732090174129,2.16,237.01,236.98,2.108]
[1732090179641,2.16,237.07,237.0,6.55769734]
[1732090179840,2.16,237.07,237.05,6.55769734]
[1732090181240,2.16,237.07,237.06,2.1073]
[1732090184944,2.16,237.07,237.05,6.55769734]
[1732090186047,2.16,237.07,236.98,1.53483761]
[1732090186242,2.16,237.07,237.06,2.1073]
[1732090187348,2.16,237.07,237.06,8.66499734]
[1732090187546,2.16,237.07,237.06,2.1073]
[1732090190446,2.16,237.18,237.06,6.55769734]
[1732090190642,0.32537,237.19,237.17,6.55769734]
[1732090191149,0.32537,237.19,237.17,8.66409734]
[1732090191844,0.32537,237.19,237.07,1.4427]
[1732090192049,0.32537,237.19,237.15,2.1065]
[1732090192244,0.32537,237.19,237.16,6.55769734]
[1732090192453,0.32537,237.19,237.18,6.55769734]
[1732090193044,2.68537,237.19,237.18,6.55769734]
[1732090193442,2.68537,237.19,237.17,2.1063]
[1732090193643,2.68537,237.19,237.17,8.66399734]
[1732090194251,2.68537,237.19,237.02,0.0996]
[1732090194553,2.68537,237.19,237.11,6.55769734]
[1732090195348,2.68537,237.19,237.13,6.55769734]
[1732090196146,2.68537,237.19,237.03,1.53173747]
[1732090196352,2.68537,237.19,237.14,6.55769734]
[1732090196854,2.68537,237.19,237.16,6.55769734]
[1732090197158,0.32537,237.19,237.18,6.55769734]
[1732090197452,2.68537,237.19,237.18,6.55769734]
[1732090200853,0.32537,237.19,237.18,6.55769734]
[1732090204054,0.32537,237.19,237.17,2.1063]
[1732090204358,0.32537,237.19,237.17,8.66399734]
[1732090204959,0.32537,237.19,237.18,2.1063]
[1732090208363,2.36,237.22,237.17,6.55769734]
[1732090208663,2.36,237.21,237.2,6.55769734]
[1732090208959,2.36,237.21,237.2,2.1061]
[1732090209468,2.10943591,237.27,237.21,2.106]
[1732090209654,2.36,237.26,237.21,2.106]
[1732090210362,2.36,237.26,237.19,2.1061]
[1732090210562,2.36,237.26,237.21,6.55769734]
[1732090211262,2.36,237.26,237.19,6.55769734]
[1732090211961,2.36,237.26,237.09,1.0139]
[1732090212260,2.36,237.26,237.21,2.106]
[1732090213764,2.36,237.26,237.22,2.1059]
[1732090214564,2.36,237.25,237.22,2.1059]
[1732090216662,2.36,237.25,237.2,2.106]
[1732090216859,2.36,237.25,237.19,6.55769734]
[1732090217260,2.36,237.25,237.21,6.55769734]
[1732090218267,2.36,237.25,237.24,2.1057]
[1732090220664,2.36,237.25,237.23,6.55769734]
[1732090220867,2.36,237.24,237.23,6.55769734]
[1732090221267,2.36,237.24,237.23,8.66349734]
[1732090221571,2.36,237.26,237.23,6.55769734]
[1732090221771,7.00170734,237.31,237.27,2.1055]
[1732090221966,2.3,237.3,237.27,2.1055]
[1732090222673,2.3,237.3,237.23,6.55769734]
[1732090222868,2.3,237.3,237.28,2.1054]
[1732090225371,2.3,237.3,237.11,0.0972]
[1732090225372,2.3,237.3,237.23,6.55769734]
[1732090226072,2.3,237.29,237.24,2.1057]
[1732090226276,2.3,237.29,237.23,6.55769734]
[1732090226677,2.3,237.29,237.24,2.1057]
[1732090226877,2.3,237.29,237.23,6.55769734]
[1732090227280,8.85769734,237.29,237.17,2.1063]
[1732090227471,6.55769734,237.27,237.11,0.0972]
[1732090227781,6.55769734,237.25,237.15,6.55769734]
[1732090227977,6.55769734,237.25,237.16,6.55769734]
[1732090228379,6.55769734,237.25,237.19,2.1061]
[1732090228572,6.55769734,237.25,237.16,6.55769734]
[1732090228885,6.55769734,237.24,237.19,2.1062]
[1732090229180,2.3,237.23,237.19,2.1062]
[1732090229377,2.3,237.23,237.2,2.1061]
[1732090229773,6.55769734,237.22,237.02,0.0968]
[1732090229975,6.55769734,237.19,237.11,6.55769734]
[1732090230177,2.3,237.18,237.14,2.1066]
[1732090230981,2.3,237.18,237.11,6.55769734]
[1732090231184,2.3,237.18,237.15,2.1065]
[1732090231682,2.3,237.18,237.14,2.1066]
[1732090232587,2.3,237.18,237.1,6.55769734]
[1732090232780,2.3,237.18,237.15,2.1065]
[1732090232981,2.3,237.18,237.1,6.55769734]
[1732090233186,2.3,237.18,237.15,2.1065]
[1732090233390,4.6685,237.28,237.16,6.55769734]
[1732090233588,8.85769734,237.27,237.19,6.55769734]
[1732090233996,8.85769734,237.27,237.22,2.1059]
[1732090234182,4.6685,237.28,237.19,6.55769734]
[1732090234390,6.55769734,237.26,237.19,6.55769734]
[1732090235395,6.55769734,237.26,237.22,2.1058]
[1732090235589,6.55769734,237.26,237.19,6.55769734]
[1732090235785,6.55769734,237.26,237.17,6.55769734]
[1732090236091,6.55769734,237.26,237.13,2.1067]
[1732090236291,6.55769734,237.26,237.17,6.55769734]
[1732090236491,6.55769734,237.24,237.17,6.55769734]
[1732090237383,6.55769734,237.24,237.2,2.106]
[1732090237583,1.0,237.28,237.2,6.55769734]
[1732090237793,1.0,237.28,237.25,8.66329734]
[1732090238091,1.0,237.28,237.25,6.55769734]
[1732090239296,1.0,237.28,237.26,2.1055]
[1732090239996,2.3,237.27,237.26,2.1055]
[1732090243293,1.0,237.28,237.27,2.1055]
[1732090243498,1.2463,237.37,237.26,6.55769734]
[1732090243499,2.3,237.29,237.26,6.55769734]
[1732090243704,2.3,237.29,237.28,6.55769734]
[1732090244090,1.2463,237.37,237.3,2.1052]
[1732090244400,2.3,237.33,237.3,8.66289734]
[1732090244801,2.3,237.32,237.3,8.66289734]
[1732090245399,1.291,237.38,237.3,8.66289734]
[1732090245400,2.3,237.33,237.3,8.66289734]
[1732090246093,2.3,237.33,237.19,2.3]
[1732090246094,2.3,237.33,237.32,6.55769734]
[1732090246692,2.3,237.33,237.32,8.66259734]
[1732090247002,2.3,237.33,237.32,2.1049]
[1732090248603,1.291,237.38,237.33,2.1049]
[1732090248804,2.3,237.37,237.32,6.55769734]
[1732090249401,2.3,237.37,237.34,2.1048]
[1732090249601,45.56086245,237.4,237.34,6.55769734]
[1732090249602,2.3,237.39,237.34,6.55769734]
[1732090250496,2.3,237.39,237.35,2.1047]
[1732090251005,2.3,237.38,237.35,2.1047]
[1732090251305,2.3,237.37,237.35,2.1047]
[1732090252199,2.3,237.37,237.34,6.55769734]
[1732090252503,2.3,237.37,237.35,2.1048]
[1732090253306,2.3,237.37,237.33,6.55769734]
[1732090253801,2.3,237.37,237.16,0.4249]
[1732090254107,2.3,237.37,237.3,6.55769734]
[1732090254608,2.3,237.37,237.33,2.1049]
[1732090255802,2.3,237.37,237.3,6.55769734]
[1732090256811,2.3,237.37,237.34,2.1048]
[1732090257707,2.3,237.37,237.33,2.1049]
[1732090258813,2.3,237.37,237.35,2.1047]
[1732090260211,2.3,237.37,237.32,6.55769734]
[1732090260407,2.3,237.37,237.3,6.55769734]
[1732090261314,2.3,237.37,237.33,2.1049]
[1732090261515,2.06058405,237.36,237.18,1.5259526]
[1732090261814,2.06058405,237.36,237.28,6.55769734]
[1732090262010,2.06058405,237.36,237.32,2.105]
[1732090263314,2.06058405,237.36,237.17,26.40375693]
[1732090263510,11.39239734,237.37,237.28,8.66299734]
[1732090263714,11.39239734,237.37,237.28,6.55769734]
[1732090264121,6.55769734,237.35,237.29,2.1052]
[1732090264321,8.63864656,237.35,237.29,2.1052]
[1732090264518,8.66269734,237.33,237.25,2.1056]
[1732090264714,6.55769734,237.32,237.23,6.55769734]
[1732090264915,2.22,237.31,237.17,26.40375693]
[1732090265117,2.22,237.31,237.22,6.55769734]
[1732090265317,2.22,237.31,237.17,26.40375693]
[1732090265515,6.55769734,237.28,237.09,0.5188]
[1732090265715,6.55769734,237.26,237.19,2.1062]
[1732090265922,2.22,237.25,237.19,2.1062]
[1732090266526,6.55769734,237.22,237.16,2.1064]
[1732090267118,6.55769734,237.22,237.14,2.1065]
[1732090267325,6.55769734,237.22,237.13,6.55769734]
[1732090267627,2.1058,237.23,237.13,6.55769734]
[1732090267824,6.55769734,237.22,237.13,6.55769734]
[1732090268024,2.2237,237.24,237.17,6.55769734]
[1732090268221,2.2237,237.24,237.05,2.22]
[1732090268222,1.0,237.24,237.19,6.55769734]
[1732090268627,1.0,237.24,237.2,2.1061]
[1732090269426,1.0,237.24,237.22,8.66359734]
[1732090269628,2.22,237.25,237.12,1.5277034]
[1732090269831,2.22,237.25,237.23,6.55769734]
[1732090270723,2.4754,237.27,237.23,6.55769734]
[1732090270919,2.22,237.26,237.24,2.1057]
[1732090271527,2.22,237.35,237.3,2.1052]
[1732090272827,2.22,237.35,237.31,2.1051]
[1732090273329,2.22,237.35,237.18,2.22]
[1732090273521,2.22,237.35,237.26,6.55769734]
[1732090273723,8.77769734,237.35,237.26,6.55769734]
[1732090274128,8.77769734,237.35,237.27,2.1054]
[1732090274627,8.77769734,237.35,237.26,6.55769734]
[1732090275528,8.77769734,237.35,237.28,2.1054]
[1732090275822,2.22,237.35,237.28,2.1054]
[1732090276026,2.22,237.35,237.28,6.55769734]
[1732090277021,2.22,237.35,237.28,8.66299734]
[1732090277226,2.22,237.35,237.28,6.55769734]
[1732090277427,0.48353,237.38,237.33,6.55769734]
[1732090277629,0.48353,237.38,237.36,2.1046]
[1732090279127,0.48353,237.38,237.24,1.5329]
[1732090279329,0.48353,237.38,237.36,2.1046]
[1732090281441,0.48353,237.38,237.33,6.55769734]
[1732090282333,0.48353,237.38,237.35,2.1047]
[1732090283834,0.48353,237.38,237.33,2.1049]
[1732090284743,6.55769734,237.35,237.27,2.1054]
[1732090284940,6.55769734,237.3,237.21,6.55769734]
[1732090285141,6.55769734,237.3,237.11,8.2917854]
[1732090285341,6.55769734,237.3,237.22,8.66349734]
[1732090285541,6.55769734,237.3,237.22,6.55769734]
[1732090285740,6.55769734,237.28,237.1,0.0954]
[1732090285941,6.55769734,237.28,237.2,2.1061]
[1732090285942,2.22,237.27,237.2,2.1061]
[1732090286241,2.22,237.27,237.21,6.55769734]
[1732090286744,2.22,237.27,237.17,10.23070128]
[1732090287341,2.22,237.27,237.2,2.1061]
[1732090287547,2.22,237.27,237.17,10.23070128]
[1732090288139,2.22,237.27,237.2,2.1061]
[1732090288344,2.22,237.27,237.17,10.23070128]
[1732090288539,2.22,237.27,237.2,10.23070128]
[1732090288947,2.22,237.27,237.25,2.1056]
[1732090289549,1.0,237.29,237.2,10.23070128]
[1732090289848,2.22,237.28,237.23,10.23070128]
[1732090290842,1.2756,237.34,237.29,2.1052]
[1732090291042,2.22,237.33,237.29,2.1052]
[1732090291343,2.22,237.33,237.3,2.1052]
[1732090292245,2.22,237.33,237.31,2.1051]
[1732090292552,2.22,237.33,237.23,10.23070128]
[1732090292852,2.22,237.33,237.3,2.1052]
[1732090293249,2.22,237.33,237.23,10.23070128]
[1732090293647,2.22,237.33,237.12,37.99572689]
[1732090293951,2.22,237.33,237.18,10.23070128]
[1732090294147,2.22,237.33,237.26,2.1055]
[1732090294750,2.22,237.33,237.23,2.1057]
[1732090294755,10.23070128,237.32,237.23,2.1057]
[1732090295246,10.23070128,237.32,237.15,10.23070128]
[1732090295247,11.23070128,237.32,237.15,10.23070128]
[1732090296952,2.1051,237.31,237.23,2.1058]
[1732090297647,13.33570128,237.32,237.23,2.1057]
[1732090297855,10.23070128,237.31,237.15,10.23070128]
[1732090298545,10.23070128,237.31,237.23,2.1057]
[1732090298954,10.23070128,237.31,237.15,10.23070128]
[1732090300045,12.33580128,237.31,237.15,10.23070128]
[1732090300244,10.23070128,237.31,237.15,10.23070128]
[1732090300847,10.23070128,237.28,237.15,10.23070128]
[1732090301056,10.23070128,237.28,237.12,25.54502561]
[1732090301057,2.22,237.27,237.12,25.54502561]
[1732090301256,3.4767,237.27,237.12,25.54502561]
[1732090301458,10.23070128,237.25,237.12,25.54502561]
[1732090301650,10.23070128,237.22,237.12,25.54502561]
[1732090301953,4.299281,237.21,237.15,2.1065]
[1732090302352,10.23070128,237.19,237.12,25.54502561]
[1732090302954,10.23070128,237.16,237.12,25.54502561]
[1732090303156,2.22,237.15,237.12,25.54502561]
[1732090303454,3.4267,237.15,237.02,10.23070128]
[1732090303850,3.4267,237.15,236.99,10.23070128]
[1732090304049,11.50040128,237.14,237.06,2.1073]
[1732090304251,11.50040128,237.14,236.9,2.22]
[1732090304454,12.50040128,237.14,236.97,10.23070128]
[1732090304653,2.1067,237.13,237.02,2.1076]
[1732090304853,10.23070128,237.11,236.97,10.23070128]
[1732090305248,10.23070128,237.05,236.9,10.23070128]
[1732090305555,2.22,237.04,236.93,10.23070128]
[1732090305755,10.23070128,237.11,236.96,10.23070128]
[1732090306051,2.22,237.1,236.96,10.23070128]
[1732090306250,2.22,237.1,236.97,1.52790305]
[1732090306455,2.22,237.1,236.96,10.23070128]
[1732090306848,2.22,237.1,236.97,1.52696495]
[1732090307155,2.22,237.1,236.96,10.23070128]
[1732090308259,2.22,237.1,237.04,2.1075]
[1732090309958,2.22,237.1,236.96,10.23070128]
[1732090311464,2.22,237.1,237.03,2.1076]
[1732090311956,2.22,237.1,236.96,10.23070128]
[1732090312558,10.23070128,237.07,236.92,0.427]
[1732090313057,2.14156123,237.06,236.92,0.427]
[1732090313356,10.23070128,237.07,236.92,0.427]
[1732090313555,2.11794184,237.06,236.92,0.427]
[1732090313760,1.0,237.06,236.96,2.1082]
[1732090313962,1.0,237.06,236.92,0.427]
[1732090315064,1.0,237.06,236.98,2.108]
[1732090315368,10.23070128,237.04,236.92,0.427]
[1732090315662,1.0,237.06,236.82,10.23070128]
[1732090315663,10.23070128,236.98,236.82,10.23070128]
[1732090315860,2.2,236.97,236.86,10.23070128]
[1732090316160,2.2,236.96,236.9,2.1087]
[1732090316365,2.2,236.95,236.86,10.23070128]
[1732090316567,2.2,236.94,236.81,1.52381916]
[1732090316869,2.2,236.93,236.78,1.0157]
[1732090317165,10.23070128,236.89,236.77,2.439]
[1732090317368,10.23070128,236.89,236.73,3.17472926]
[1732090317667,10.23070128,236.89,236.74,1.52278014]
[1732090317967,10.23070128,236.86,236.75,2.11]
[1732090318269,10.23070128,236.86,236.71,10.23070128]
[1732090318270,2.2,236.85,236.71,10.23070128]
[1732090318764,2.2,236.84,236.74,10.23070128]
[1732090318962,13.98690128,236.92,236.83,2.1093]
[1732090319168,2.2,236.91,236.77,10.23070128]
[1732090322075,2.2,236.91,236.86,2.1091]
[1732090322271,2.2,236.91,236.77,10.23070128]
[1732090322467,2.2,236.91,236.85,2.1092]
[1732090323069,10.23070128,236.89,236.76,1.51658477]
[1732090323266,10.23070128,236.89,236.74,10.23070128]
[1732090324268,10.23070128,236.89,236.8,2.1096]
[1732090324575,12.33960128,236.89,236.74,10.23070128]
[1732090326171,10.23070128,236.86,236.71,10.23070128]
[1732090326479,10.23070128,236.86,236.66,5.6547]
[1732090326480,2.2,236.85,236.69,10.23070128]
[1732090326680,12.34010128,236.83,236.73,2.1102]
[1732090326976,12.31843694,236.83,236.66,11.42170128]
[1732090327368,10.23070128,236.8,236.66,11.42170128]
[1732090327569,10.23070128,236.77,236.57,5.06007624]
[1732090327778,10.23070128,236.77,236.62,10.23070128]
[1732090328369,2.2,236.76,236.65,10.23070128]
[1732090329079,2.2,236.76,236.68,10.23070128]
[1732090329273,10.23070128,236.83,236.68,10.23070128]
[1732090329474,2.2,236.82,236.71,10.23070128]
[1732090329677,13.97690128,236.87,236.71,10.23070128]
[1732090329877,2.2,236.86,236.71,10.23070128]
[1732090331483,4.3091,236.86,236.71,10.23070128]
[1732090331979,2.2,236.86,236.71,10.23070128]
[1732090332375,2.2,236.86,236.68,10.23070128]
[1732090332376,10.23070128,236.84,236.68,10.23070128]
[1732090333184,10.23070128,236.84,236.74,2.1102]
[1732090333883,1.0,236.83,236.74,2.1102]
[1732090334273,3.1094,236.83,236.74,2.1102]
[1732090334781,3.1094,236.83,236.75,2.1101]
[1732090336586,2.1097,236.79,236.65,11.44610128]
[1732090336887,2.2,236.78,236.68,10.23070128]
[1732090337880,2.2,236.78,236.73,2.1102]
[1732090338394,2.2,236.78,236.68,10.23070128]
[1732090339285,1.0,236.83,236.68,10.23070128]
[1732090339487,2.2,236.82,236.68,10.23070128]
[1732090339689,2.2,236.82,236.75,2.1101]
[1732090339880,1.0,236.83,236.71,10.23070128]
[1732090340082,2.2,236.82,236.74,10.23070128]
[1732090340381,2.2,236.82,236.81,2.1095]
[1732090341683,1.228,236.94,236.77,10.23070128]
[1732090341886,2.2,236.93,236.78,1.1793]
[1732090342184,1.228,236.94,236.78,1.1793]
[1732090342489,2.2,236.93,236.78,1.1793]
[1732090342981,2.2,236.93,236.82,2.1094]
[1732090343180,2.2,236.93,236.78,1.1793]
[1732090343484,2.2,236.93,236.8,10.23070128]
[1732090343879,2.2,236.93,236.83,2.1093]
[1732090344187,2.2,236.93,236.8,10.23070128]
[1732090344590,2.2,236.93,236.87,2.109]
[1732090345680,2.2,236.93,236.8,10.23070128]
[1732090346183,12.69470128,236.95,236.91,2.1086]
[1732090346184,2.22,236.92,236.91,2.1086]
[1732090346787,10.23070128,237.01,236.93,2.1084]
[1732090347082,2.22,236.98,236.87,10.23070128]
[1732090347682,11.41450128,237.04,236.87,10.23070128]
[1732090347879,1.1838,237.04,236.9,10.23070128]
[1732090348184,2.22,237.03,236.9,10.23070128]
[1732090348393,2.22,237.03,236.87,10.23070128]
[1732090348592,10.23070128,237.01,236.88,1.51882974]
[1732090348796,10.23070128,237.01,236.87,10.23070128]
[1732090348995,10.23070128,237.01,236.88,4.6857571]
[1732090349292,1.0,237.02,236.89,1.5187111]
[1732090349487,2.22,237.01,236.91,2.1086]
[1732090349690,2.22,237.01,236.87,10.23070128]
[1732090349889,2.22,237.01,236.9,10.23070128]
[1732090350093,2.22,237.01,236.91,1.51893039]
[1732090350290,2.22,237.0,236.9,10.23070128]
[1732090350493,2.22,237.0,236.91,1.51910368]
[1732090350792,2.22,237.0,236.98,2.108]
[1732090353096,2.22,236.99,236.98,2.108]
[1732090355293,2.22,236.99,236.9,10.23070128]
[1732090356294,2.22,236.99,236.96,2.1082]
[1732090356501,2.22,236.99,236.9,10.23070128]
[1732090357092,2.22,236.99,236.86,10.23070128]
[1732090357296,2.22,236.99,236.91,2.1086]
[1732090357596,2.22,236.99,236.86,10.23070128]
[1732090359018,2.22,236.99,236.89,2.1088]
[1732090359205,2.22,236.99,236.83,10.23070128]
[1732090359394,2.1081,236.97,236.8,10.23070128]
[1732090359598,10.23070128,236.95,236.86,2.1091]
[1732090360105,10.23070128,236.95,236.85,2.1092]
[1732090360304,10.23070128,236.92,236.79,1.0157]
[1732090360607,2.22,236.91,236.83,10.23070128]
[1732090361498,2.22,236.91,236.88,2.1089]
[1732090361700,2.22,236.91,236.83,10.23070128]
[1732090362805,2.22,236.91,236.89,2.1088]
[1732090363909,2.22,236.91,236.83,10.23070128]
[1732090364109,2.22,236.91,236.88,2.1089]
[1732090364811,2.22,236.91,236.81,1.52630164]
[1732090365111,2.22,236.91,236.8,10.23070128]
[1732090366311,2.22,236.91,236.87,2.109]
[1732090366611,2.22,236.91,236.8,10.23070128]
[1732090367212,2.22,236.91,236.88,2.1089]
[1732090369912,2.22,236.91,236.9,2.1088]
[1732090370509,2.22,236.91,236.85,2.1092]
[1732090370913,2.22,236.91,236.78,1.1793]
[1732090371311,2.22,236.91,236.85,2.1092]
[1732090371618,2.22,236.91,236.78,1.1793]
[1732090372020,2.22,236.91,236.85,2.1092]
[1732090374520,2.22,236.91,236.86,2.1091]
[1732090374722,2.22,236.91,236.78,1.1793]
[1732090374919,2.22,236.91,236.81,10.23070128]
[1732090375123,1.2738,236.93,236.84,10.23070128]
[1732090375124,2.18,236.9,236.84,10.23070128]
[1732090375823,2.18,236.9,236.89,2.1088]
[1732090376524,2.18,236.92,236.87,10.23070128]
[1732090377328,2.18,236.92,236.91,2.1087]
[1732090379322,2.18,236.96,236.95,2.1083]
[1732090380627,2.18,236.96,236.82,1.0179]
[1732090380628,2.18,236.96,236.87,10.23070128]
[1732090380824,2.18,236.96,236.84,10.23070128]
[1732090381129,2.18,236.96,236.85,1.52802761]
[1732090381329,2.18,236.96,236.92,2.1085]
[1732090381518,2.18,236.96,236.85,1.52875409]
[1732090381723,2.18,236.96,236.84,10.23070128]
[1732090382026,2.18,236.96,236.85,1.52881324]
[1732090382222,2.18,236.96,236.84,10.23070128]
[1732090382426,2.18,236.96,236.85,1.52935787]
[1732090382726,2.18,236.96,236.84,10.23070128]
[1732090382923,2.18,236.96,236.85,1.52922335]
[1732090383126,2.18,236.96,236.93,2.1085]
[1732090384024,2.18,236.96,236.9,2.1087]
[1732090384628,2.18,236.96,236.84,10.23070128]
[1732090384931,2.18,236.96,236.91,2.1086]
[1732090386030,2.18,236.96,236.89,2.1088]
[1732090386231,2.18,236.96,236.84,10.23070128]
[1732090386434,2.18,236.96,236.85,1.53285162]
[1732090386634,2.18,236.96,236.84,10.23070128]
[1732090386635,2.18,236.96,236.86,1.53285162]
[1732090386929,2.18,236.96,236.91,2.1087]
[1732090387131,1.2775,236.99,236.87,10.23070128]
[1732090387327,2.18,236.98,236.88,1.53243926]
[1732090387529,2.18,236.98,236.96,2.1082]
[1732090387732,2.18,236.98,236.87,10.23070128]
[1732090388030,2.18,236.98,236.9,10.23070128]
[1732090388238,1.3009,237.05,236.99,2.1079]
[1732090388533,2.18,237.04,236.99,2.1079]
[1732090388727,2.18,237.04,236.93,10.23070128]
[1732090389530,2.18,237.03,236.93,10.23070128]
[1732090389729,1.3011,237.09,236.96,10.23070128]
[1732090389933,2.18,237.08,237.04,2.1075]
[1732090390135,2.18,237.08,236.96,10.23070128]
[1732090390335,2.18,237.08,236.97,1.53129102]
[1732090390532,2.18,237.08,237.05,2.1074]
[1732090390733,2.18,237.07,237.05,2.1074]
[1732090391133,2.18,237.07,237.04,2.1075]
[1732090392238,13.98740128,237.15,236.99,10.23070128]
[1732090392439,2.18,237.14,237.07,2.1072]
[1732090392637,2.18,237.13,237.07,2.1072]
[1732090393136,2.18,237.13,236.99,10.23070128]
[1732090393338,2.18,237.13,237.0,1.53105587]
[1732090393539,2.18,237.13,236.99,10.23070128]
[1732090393738,2.18,237.13,237.0,1.53032426]
[1732090393938,2.18,237.13,237.08,2.1071]
[1732090394640,2.18,237.13,237.01,1.53056661]
[1732090394848,2.18,237.13,236.99,10.23070128]
[1732090395241,2.18,237.13,237.07,2.1072]
[1732090395436,2.18,237.13,236.99,10.23070128]
[1732090395437,2.18,237.13,237.0,1.52927487]
[1732090395636,2.18,237.13,236.99,10.23070128]
[1732090395945,2.18,237.13,237.07,2.1072]
[1732090397147,2.18,237.13,236.99,10.23070128]
[1732090397847,2.18,237.13,237.03,2.1076]
[1732090398040,2.18,237.13,236.99,10.23070128]
[1732090398445,2.18,237.13,237.03,2.1076]
[1732090398648,10.23070128,237.12,236.96,10.23070128]
[1732090399150,2.1069,237.11,237.02,2.1077]
[1732090399343,10.23070128,237.09,236.93,10.23070128]
[1732090400351,10.23070128,237.09,237.0,2.1078]
[1732090400545,10.23070128,237.09,236.93,10.23070128]
[1732090400756,1.0,237.08,236.93,10.23070128]
[1732090400954,2.18,237.07,236.93,10.23070128]
[1732090401148,2.18,237.07,236.98,2.108]
[1732090402253,2.18,237.07,236.93,10.23070128]
[1732090402553,2.1073,237.06,236.93,10.23070128]
[1732090402751,3.1073,237.06,236.93,10.23070128]
[1732090402947,3.36196907,237.05,236.9,11.47940128]
[1732090403149,5.82256907,237.05,236.9,11.47940128]
[1732090403455,2.1075,237.04,236.95,2.1083]
[1732090405254,10.23070128,237.03,236.95,2.1083]
[1732090405553,2.14,237.02,236.95,2.1083]
[1732090405750,2.14,237.02,236.89,1.2083]
[1732090406554,2.14,237.02,236.87,10.23070128]
[1732090406954,10.23070128,237.0,236.85,1.0156]
[1732090407350,12.33860128,237.0,236.85,1.0156]
[1732090407954,12.33860128,237.0,236.84,10.23070128]
[1732090408356,12.33860128,237.0,236.91,2.1086]
[1732090408956,10.23070128,237.0,236.84,10.23070128]
[1732090409158,2.108,236.98,236.84,10.23070128]
[1732090409359,2.14,236.97,236.84,10.23070128]
[1732090409652,2.14,236.97,236.9,2.1087]
[1732090410653,2.14,236.97,236.91,2.1086]
[1732090411959,2.14,236.97,236.84,10.23070128]
[1732090412359,12.37070128,236.97,236.84,10.23070128]
[1732090412566,14.47890128,236.97,236.9,2.1087]
[1732090412750,12.37070128,236.97,236.9,2.1087]
[1732090413453,2.14,236.96,236.84,10.23070128]
[1732090413650,2.14,236.95,236.84,10.23070128]
[1732090413852,2.14,236.94,236.84,10.23070128]
[1732090414456,2.14,236.94,236.87,2.109]
[1732090414652,2.14,236.94,236.84,10.23070128]
[1732090416252,2.14,236.94,236.87,10.23070128]
[1732090416453,2.14,236.95,236.9,10.23070128]
[1732090416657,2.14,236.95,236.91,6.56371076]
[1732090416864,2.14,236.95,236.91,2.1086]
[1732090417062,2.14,236.95,236.89,6.56371076]
[1732090417462,2.14,236.95,236.91,2.1086]
[1732090418163,8.70371076,236.95,236.86,2.1091]
[1732090418360,8.70371076,236.95,236.86,6.56371076]